bitfinex/quotes_ETHUSD_20251011
["timestamp","ask_amount","ask_price","bid_price","bid_amount"]
[1760161441229,0.448,3789.2,3787.7,0.4311]
[1760161441425,0.448,3789.2,3787.9,0.6336]
[1760161441426,2.6394731,3788.7,3787.9,0.6336]
[1760161441739,2.6394731,3788.7,3787.9,3.27356547]
[1760161442043,0.448,3788.9,3787.6,1e-08]
[1760161442336,2.6393581,3788.8,3787.8,0.6336]
[1760161442528,2.6393581,3788.8,3787.7,2.6400954]
[1760161442529,2.6394295,3788.7,3788.0,0.6336]
[1760161442729,2.63964908,3788.4,3788.0,0.6336]
[1760161443333,2.63964908,3788.4,3787.7,0.6336]
[1760161443841,2.63955518,3788.6,3787.9,0.6336]
[1760161444037,2.63957253,3788.5,3787.9,0.6336]
[1760161444224,2.63995019,3788.0,3787.7,0.6336]
[1760161444545,2.63985534,3788.1,3787.6,1e-08]
[1760161444747,2.63997085,3788.0,3787.6,1e-08]
[1760161445047,2.64012461,3787.7,3787.6,1e-08]
[1760161445442,2.64002643,3787.9,3787.6,1e-08]
[1760161445637,2.64012461,3787.7,3787.6,1e-08]
[1760161445963,4.60931136,3788.9,3786.9,0.002]
[1760161445964,2.64005575,3787.8,3786.9,0.4331]
[1760161446119,2.63974405,3788.3,3787.2,2.6404442]
[1760161446326,2.63993623,3788.0,3787.3,0.4311]
[1760161446624,2.64018655,3787.7,3786.9,0.4331]
[1760161446938,2.63992755,3788.0,3787.2,2.64045471]
[1760161447136,2.64011521,3787.8,3786.9,0.4331]
[1760161447340,2.64012966,3787.7,3786.9,0.4331]
[1760161447539,2.64019807,3787.6,3786.9,0.4331]
[1760161447753,2.64026158,3787.6,3786.9,0.002]
[1760161448045,0.2161,3787.9,3786.9,0.002]
[1760161448220,2.6403898,3787.4,3786.9,0.002]
[1760161448424,2.64033595,3787.4,3786.9,0.002]
[1760161449149,2.64056345,3787.1,3786.9,0.002]
[1760161449843,1.92,3787.7,3786.9,0.002]
[1760161449844,2.64061262,3787.0,3786.9,0.002]
[1760161450049,4.56061262,3787.0,3786.9,0.002]
[1760161450219,5.01151262,3787.0,3786.9,0.002]
[1760161452943,1.92,3787.0,3786.9,0.002]
[1760161453348,4.56061262,3787.0,3786.9,0.002]
[1760161453543,1.92,3787.0,3786.9,0.002]
[1760161453860,4.56061262,3787.0,3786.9,0.002]
[1760161454355,5.01151262,3787.0,3786.9,0.002]
[1760161455351,4.56061262,3787.0,3786.9,0.002]
[1760161456060,5.01151262,3787.0,3786.9,0.002]
[1760161456261,4.56061262,3787.0,3786.9,0.002]
[1760161456639,1.92,3787.0,3786.9,0.002]
[1760161457052,4.56061262,3787.0,3786.9,0.002]
[1760161458361,5.01151262,3787.0,3786.9,0.002]
[1760161467179,1.92,3787.0,3786.9,0.002]
[1760161467377,4.56061262,3787.0,3786.9,0.002]
[1760161467743,1.92,3787.0,3786.9,0.002]
[1760161467943,2.64044899,3787.3,3786.9,0.002]
[1760161468173,2.63993784,3788.0,3787.0,0.6336]
[1760161468174,0.4509,3788.0,3787.0,0.6336]
[1760161468375,2.64015902,3787.7,3787.0,0.6336]
[1760161469290,2.64019974,3787.6,3787.0,0.6336]
[1760161469778,2.6401307,3787.7,3787.0,0.6336]
[1760161470874,2.3709,3788.0,3787.0,3.27420496]
[1760161471078,2.64007109,3787.8,3787.0,3.27420496]
[1760161471276,2.6401314,3787.7,3787.0,3.27420496]
[1760161472647,2.6401314,3787.7,3787.0,0.6336]
[1760161473297,2.6401314,3787.7,3787.0,3.27419644]
[1760161473945,2.6401314,3787.7,3787.0,0.6336]
[1760161474153,2.64027727,3787.5,3787.0,0.6336]
[1760161474377,1.92,3787.7,3786.9,0.6356]
[1760161474602,2.64019431,3787.6,3786.9,0.6356]
[1760161474912,2.6402882,3787.5,3786.9,0.002]
[1760161475411,3.05454118,3787.4,3786.9,0.002]
[1760161475624,2.64061262,3787.0,3786.9,0.002]
[1760161475920,0.41418475,3787.4,3786.9,0.4298]
[1760161476305,0.41418475,3787.4,3787.0,0.6336]
[1760161476493,0.4509,3787.8,3786.9,0.002]
[1760161476494,2.64061262,3787.0,3786.9,0.002]
[1760161477397,3.09151262,3787.0,3786.9,0.002]
[1760161478210,5.01151262,3787.0,3786.9,0.002]
[1760161480026,3.09151262,3787.0,3786.9,0.002]
[1760161480384,2.64061262,3787.0,3786.9,0.002]
[1760161480887,0.001,3787.6,3786.9,0.4484]
[1760161481087,0.001,3787.6,3787.2,0.6336]
[1760161481615,0.001,3787.6,3787.4,0.6336]
[1760161481997,0.001,3787.6,3787.0,0.6336]
[1760161482426,0.001,3787.6,3787.2,0.6336]
[1760161482727,0.001,3787.6,3787.1,0.6336]
[1760161482895,2.64031603,3787.5,3787.0,0.6336]
[1760161483241,2.64120611,3787.6,3787.0,0.6336]
[1760161483397,0.001,3787.6,3787.2,0.6336]
[1760161483592,0.001,3787.6,3787.4,0.6336]
[1760161484100,0.001,3787.6,3787.5,3.72026402]
[1760161485221,0.001,3787.6,3787.2,2.64041429]
[1760161485437,0.001,3787.6,3786.9,0.002]
[1760161485599,0.001,3787.6,3787.3,0.4464]
[1760161486008,2.64119577,3787.6,3787.0,0.4464]
[1760161486210,2.64119577,3787.6,3786.9,0.002]
[1760161486412,2.64026628,3787.5,3786.9,0.6356]
[1760161486919,3.05535841,3787.6,3786.9,0.6356]
[1760161487101,2.64061262,3787.0,3786.9,0.002]
[1760161489297,4.56061262,3787.0,3786.9,0.002]
[1760161489840,5.01581262,3787.0,3786.9,0.002]
[1760161490334,4.56061262,3787.0,3786.9,0.002]
[1760161491928,5.02901262,3787.0,3786.9,0.002]
[1760161492307,4.56061262,3787.0,3786.9,0.002]
[1760161492714,1.92,3787.0,3786.9,0.002]
[1760161492917,2.64046198,3787.3,3787.0,0.6336]
[1760161493132,0.001,3787.6,3787.0,0.6336]
[1760161493133,0.001,3787.6,3787.2,0.6336]
[1760161493505,1.92,3787.4,3786.9,0.002]
[1760161493906,1.92,3787.4,3787.0,0.4598]
[1760161494107,1.92,3787.4,3787.2,0.6336]
[1760161494931,1.92,3787.4,3786.9,0.002]
[1760161495131,3.0554129,3787.6,3786.9,0.002]
[1760161495315,0.41519508,3787.6,3787.2,0.6336]
[1760161495513,0.41519508,3787.6,3787.4,0.6336]
[1760161495709,3.05541303,3787.6,3787.4,0.6336]
[1760161495911,0.41519508,3787.6,3787.4,0.6336]
[1760161496632,2.64039511,3787.4,3786.9,0.6356]
[1760161496817,0.41519508,3787.6,3787.1,0.6336]
[1760161497222,0.41519508,3787.6,3787.3,0.6336]
[1760161497421,0.001,3787.5,3787.3,0.6336]
[1760161497620,2.64127341,3787.5,3786.9,0.6356]
[1760161498625,2.64034506,3787.4,3786.9,0.6356]
[1760161499032,2.64034506,3787.4,3787.1,0.6336]
[1760161499229,2.64128103,3787.5,3787.1,0.6336]
[1760161499435,2.64128103,3787.5,3786.9,0.002]
[1760161499632,0.001,3787.5,3786.9,0.6356]
[1760161500038,0.001,3787.5,3786.9,1.0954]
[1760161500241,0.001,3787.5,3787.0,0.4598]
[1760161500435,0.001,3787.5,3787.2,0.6336]
[1760161500744,0.001,3787.5,3787.1,1.0934]
[1760161500951,0.001,3787.5,3787.2,0.4598]
[1760161501119,0.001,3787.5,3786.9,0.6356]
[1760161501443,2.64127487,3787.5,3786.9,0.6356]
[1760161501626,2.64034043,3787.4,3786.9,0.6356]
[1760161501828,0.001,3787.5,3787.1,0.6336]
[1760161502223,0.001,3787.5,3786.9,0.002]
[1760161502224,2.64033373,3787.4,3786.9,0.002]
[1760161502446,2.64056917,3787.1,3786.9,0.002]
[1760161502645,2.64039893,3787.4,3786.9,0.002]
[1760161502849,2.64046054,3787.3,3786.9,0.002]
[1760161503045,2.64128197,3787.5,3786.9,0.002]
[1760161503046,0.001,3787.5,3786.9,0.002]
[1760161503250,2.64061262,3787.0,3786.9,0.002]
[1760161504624,5.02901262,3787.0,3786.9,0.002]
[1760161504828,4.56061262,3787.0,3786.9,0.002]
[1760161505432,5.02901262,3787.0,3786.9,0.002]
[1760161506232,4.56061262,3787.0,3786.9,0.002]
[1760161506642,5.02901262,3787.0,3786.9,0.002]
[1760161508646,4.56068235,3786.9,3786.8,1e-08]
[1760161509152,4.99778235,3786.9,3786.8,1e-08]
[1760161509519,4.56089156,3786.6,3786.5,0.002]
[1760161509724,4.56117056,3786.2,3784.7,0.2108]
[1760161510259,4.99827056,3786.2,3784.8,0.6336]
[1760161511723,4.99827056,3786.2,3784.7,0.6336]
[1760161511923,4.99827056,3786.2,3784.5,0.6336]
[1760161512121,4.99827056,3786.2,3784.3,0.6708]
[1760161512122,4.99827056,3786.2,3784.7,0.6336]
[1760161512471,4.99827056,3786.2,3784.8,2.6421304]
[1760161512772,4.99827056,3786.2,3784.7,0.6336]
[1760161512921,2.64117056,3786.2,3785.5,0.6336]
[1760161513128,3.07827056,3786.2,3785.1,0.6336]
[1760161513472,2.33434878,3786.3,3785.5,0.46]
[1760161513473,0.41434878,3786.3,3785.5,0.46]
[1760161513962,4.56117056,3786.2,3785.5,0.46]
[1760161514262,1.92,3786.2,3785.5,0.46]
[1760161514449,0.6346,3787.9,3786.2,0.6336]
[1760161514450,14.68858317,3787.4,3786.2,0.6336]
[1760161514649,2.64102816,3786.5,3786.2,0.6336]
[1760161514865,2.64102816,3786.5,3786.1,0.002]
[1760161515459,1.92,3786.6,3786.1,0.002]
[1760161515768,0.41429564,3787.1,3786.4,2.7968273]
[1760161516069,0.001,3787.5,3786.6,0.6336]
[1760161516348,0.001,3787.2,3787.1,3.27414289]
[1760161516553,0.001,3787.2,3787.1,3.73414289]
[1760161516773,0.001,3787.2,3787.1,5.65414289]
[1760161516954,0.001,3787.2,3787.1,5.78614289]
[1760161517521,0.001,3787.2,3787.1,5.65414289]
[1760161517767,0.001,3787.2,3787.1,3.84010582]
[1760161518261,0.001,3787.2,3787.1,3.73414289]
[1760161518766,0.001,3787.2,3787.1,1.0936]
[1760161518927,0.001,3787.2,3787.1,3.73414289]
[1760161520327,0.001,3787.2,3787.1,5.65414289]
[1760161521040,0.001,3788.0,3787.8,3.27365491]
[1760161521437,0.001,3788.0,3787.8,3.73365491]
[1760161522236,0.001,3788.0,3787.8,0.6336]
[1760161522436,0.001,3788.0,3787.8,0.46]
[1760161522626,0.001,3788.0,3787.8,3.73365491]
[1760161523152,0.001,3788.0,3787.8,0.46]
[1760161523352,0.001,3788.0,3787.8,1.0936]
[1760161523746,0.001,3788.0,3787.8,3.73365491]
[1760161524369,0.001,3788.0,3787.8,1.0936]
[1760161525663,0.001,3788.0,3787.2,0.46]
[1760161525836,2.64008309,3787.8,3787.3,0.6336]
[1760161526170,2.64024769,3787.6,3787.0,0.4473]
[1760161526333,0.001,3788.0,3787.0,0.4473]
[1760161526659,0.001,3788.0,3787.1,2.64053793]
[1760161526846,0.001,3788.0,3787.7,0.6336]
[1760161527047,0.001,3788.0,3787.7,3.27372376]
[1760161527279,0.001,3788.0,3787.8,1.0809]
[1760161527794,0.001,3788.0,3787.8,3.72095491]
[1760161528864,0.001,3788.0,3787.8,3.85215491]
[1760161533674,0.001,3788.0,3787.8,3.72095491]
[1760161533885,0.001,3788.0,3787.8,5.77215491]
[1760161534173,0.001,3788.1,3787.8,5.77215491]
[1760161534174,0.001,3788.3,3788.2,3.27337614]
[1760161534375,0.001,3788.3,3788.2,5.32457614]
[1760161534677,0.001,3788.3,3788.2,5.77187614]
[1760161535300,0.001,3788.3,3788.2,3.85187614]
[1760161536182,0.001,3788.3,3788.2,0.4473]
[1760161536473,0.001,3788.3,3788.1,0.1175]
[1760161536679,0.001,3788.3,3788.2,1.0809]
[1760161536878,0.001,3788.3,3788.1,0.1175]
[1760161537276,0.001,3788.3,3788.2,0.6336]
[1760161539791,0.001,3788.3,3788.2,1.0623]
[1760161540531,0.001,3788.3,3788.2,3.70207614]
[1760161540825,0.001,3788.3,3788.2,3.83327614]
[1760161541806,0.001,3788.3,3788.2,3.85982736]
[1760161542007,0.001,3788.3,3788.2,3.72862736]
[1760161542214,0.001,3788.3,3788.2,3.70207614]
[1760161542615,0.001,3788.3,3788.2,3.72835295]
[1760161543035,0.001,3788.3,3788.2,3.85955295]
[1760161543889,0.001,3788.3,3788.2,5.77955295]
[1760161544092,0.001,3788.3,3788.2,5.75327614]
[1760161544296,0.001,3788.3,3788.2,5.77955295]
[1760161544599,0.001,3788.3,3788.2,5.75327614]
[1760161544793,0.001,3788.3,3788.2,5.77955295]
[1760161545224,0.001,3788.3,3788.2,5.75327614]
[1760161545428,0.001,3788.4,3788.3,2.63970646]
[1760161545634,0.001,3788.4,3788.3,5.62200646]
[1760161545834,0.001,3788.7,3788.6,3.27309743]
[1760161546256,0.001,3788.7,3788.6,3.83299743]
[1760161546628,0.001,3788.7,3788.6,5.75299743]
[1760161546949,0.001,3789.3,3788.8,3.2729581]
[1760161547149,0.001,3789.3,3788.8,5.3241581]
[1760161547524,0.001,3789.3,3788.8,5.7528581]
[1760161547723,0.001,3790.1,3790.0,3.27212242]
[1760161547918,0.001,3790.1,3790.0,5.19212242]
[1760161548122,0.001,3790.1,3790.0,5.75202242]
[1760161549862,0.001,3790.1,3790.0,5.11842242]
[1760161550457,0.001,3790.1,3790.0,5.75202242]
[1760161550665,2.6394586,3790.1,3789.3,0.4524]
[1760161550822,2.6394586,3790.1,3788.4,2.63957712]
[1760161550823,0.001,3790.1,3789.9,0.6336]
[1760161551028,0.001,3790.1,3788.2,2.6397685]
[1760161551029,0.001,3790.1,3790.0,1.086]
[1760161551235,0.001,3790.1,3790.0,3.72452242]
[1760161551757,0.001,3790.1,3790.0,1.086]
[1760161551925,0.001,3790.1,3790.0,0.4524]
[1760161552764,0.001,3790.1,3789.2,0.4524]
[1760161552963,0.001,3790.1,3789.4,0.6336]
[1760161553264,0.001,3790.1,3789.3,2.63895316]
[1760161553265,0.001,3790.1,3789.3,3.27260453]
[1760161553467,2.63857794,3790.0,3789.2,0.4524]
[1760161553677,2.63875742,3789.7,3789.2,0.4524]
[1760161554063,2.63875742,3789.7,3789.3,0.4524]
[1760161554378,0.001,3790.1,3789.5,0.6336]
[1760161554545,0.001,3790.1,3788.8,3.09170055]
[1760161554546,2.63861127,3789.9,3788.8,3.09170055]
[1760161554739,2.63878701,3789.7,3789.0,0.6336]
[1760161554942,2.63880999,3789.6,3789.0,0.6336]
[1760161555371,2.63867481,3789.8,3789.2,0.6336]
[1760161555372,2.63867999,3789.8,3789.2,0.6336]
[1760161555571,2.63852242,3790.0,3789.2,0.6336]
[1760161555877,2.63947657,3790.1,3789.2,0.6336]
[1760161556171,2.63864506,3789.9,3789.2,0.6336]
[1760161556360,2.63868484,3789.8,3789.2,0.6336]
[1760161557164,2.63873676,3789.7,3789.2,1.086]
[1760161557371,2.63873676,3789.7,3789.1,0.6336]
[1760161557571,2.6386661,3789.8,3789.1,1.086]
[1760161557773,2.6387377,3789.7,3789.1,1.086]
[1760161558144,0.001,3790.1,3789.2,0.4524]
[1760161558369,0.001,3790.1,3789.2,3.09146315]
[1760161558570,0.001,3790.1,3789.5,2.63886221]
[1760161558763,0.001,3790.1,3789.6,0.6336]
[1760161558964,0.001,3790.1,3789.6,1.086]
[1760161559165,0.001,3790.1,3789.7,5.0111116]
[1760161559342,0.001,3790.1,3789.7,0.4524]
[1760161559548,0.001,3790.1,3789.9,0.6336]
[1760161560069,0.001,3790.1,3789.9,0.4524]
[1760161560270,0.001,3790.1,3789.0,4.55920216]
[1760161560464,0.001,3790.1,3789.7,0.4524]
[1760161560643,0.001,3790.1,3789.8,0.6336]
[1760161560840,0.001,3790.1,3789.8,1.086]
[1760161561055,0.001,3790.1,3790.0,0.6336]
[1760161561479,0.001,3790.1,3789.5,1.086]
[1760161561645,2.63857799,3790.0,3789.5,1.086]
[1760161561841,2.63863254,3789.9,3789.5,1.086]
[1760161562045,2.63859525,3789.9,3789.6,0.4524]
[1760161562283,2.63866167,3789.8,3789.7,0.6336]
[1760161562475,2.63866167,3789.8,3789.4,0.6336]
[1760161562671,2.63873129,3789.7,3789.5,0.4524]
[1760161562978,2.63873129,3789.7,3789.1,0.4524]
[1760161563183,2.63867788,3789.8,3789.2,0.6336]
[1760161563962,2.63899091,3789.4,3788.6,2.63944668]
[1760161564285,2.63899091,3789.4,3788.3,0.02319895]
[1760161564286,2.6387132,3789.8,3788.7,3.09176009]
[1760161564589,0.001,3790.1,3789.0,0.6336]
[1760161564856,2.63852242,3790.0,3789.2,2.63905408]
[1760161564987,2.63852242,3790.0,3789.3,0.4524]
[1760161565178,0.001,3790.1,3789.4,0.6336]
[1760161565581,0.001,3790.1,3790.0,3.27212242]
[1760161565972,0.001,3790.1,3790.0,3.85572242]
[1760161569703,0.001,3790.1,3790.0,5.77572242]
[1760161572408,0.001,3790.1,3790.0,3.22212242]
[1760161572814,0.001,3790.1,3790.0,3.85572242]
[1760161573013,0.001,3790.1,3790.0,0.5836]
[1760161573192,0.001,3790.1,3790.0,0.4524]
[1760161573984,0.001,3790.1,3790.0,1.086]
[1760161574213,0.001,3790.1,3789.6,2.5536]
[1760161574214,0.001,3790.1,3789.6,0.4704]
[1760161574523,0.001,3790.1,3789.7,1.104]
[1760161575015,0.001,3790.1,3789.9,0.6336]
[1760161575212,0.001,3790.1,3789.4,2.63891607]
[1760161575515,0.001,3790.1,3789.2,0.4704]
[1760161575693,2.63879641,3789.7,3789.2,0.4704]
[1760161575895,2.63884431,3789.6,3789.2,0.4704]
[1760161576133,2.63907948,3789.2,3789.1,0.002]
[1760161576698,4.55907948,3789.2,3789.1,0.002]
[1760161576900,5.01327948,3789.2,3789.1,0.002]
[1760161577385,4.55907948,3789.2,3789.1,0.002]
[1760161578118,5.01327948,3789.2,3789.1,0.002]
[1760161578895,4.55907948,3789.2,3789.1,0.002]
[1760161579418,4.97312331,3789.2,3789.1,0.002]
[1760161579595,5.42732331,3789.2,3789.1,0.002]
[1760161581253,4.97312331,3789.2,3789.1,0.002]
[1760161581410,4.55907948,3789.2,3789.1,0.002]
[1760161581614,5.01327948,3789.2,3789.1,0.002]
[1760161585842,4.55907948,3789.2,3789.1,0.002]
[1760161586627,1.92,3789.2,3789.1,0.002]
[1760161586953,4.55907948,3789.2,3789.1,0.002]
[1760161589647,1.92,3789.2,3789.1,0.002]
[1760161589822,4.55907948,3789.2,3789.1,0.002]
[1760161590422,0.001,3789.7,3789.1,0.002]
[1760161590627,0.001,3789.7,3789.2,3.27262294]
[1760161590870,0.001,3789.7,3789.4,0.6336]
[1760161591366,2.63978814,3789.7,3789.1,0.6356]
[1760161591530,2.6388102,3789.6,3789.1,0.6356]
[1760161591725,2.63880092,3789.6,3789.1,0.6356]
[1760161591961,2.63907948,3789.2,3789.1,0.002]
[1760161592163,0.001,3789.7,3789.1,0.002]
[1760161592371,2.63907948,3789.2,3789.1,0.002]
[1760161592858,4.55907948,3789.2,3789.1,0.002]
[1760161593156,5.01327948,3789.2,3789.1,0.002]
[1760161594636,4.97310055,3789.2,3789.1,0.002]
[1760161596456,5.42730055,3789.2,3789.1,0.002]
[1760161598594,2.6393581,3788.8,3788.7,0.002]
[1760161598882,4.5593581,3788.8,3788.7,0.002]
[1760161599647,5.0182581,3788.8,3788.7,0.002]
[1760161600861,5.43234387,3788.8,3788.7,0.002]
[1760161601057,5.0182581,3788.8,3788.7,0.002]
[1760161603869,5.43236123,3788.8,3788.7,0.002]
[1760161605960,3.05346123,3788.8,3788.7,0.002]
[1760161606162,0.41410313,3788.8,3788.7,3.71542777]
[1760161606660,0.001,3789.7,3788.8,0.6336]
[1760161606968,1.921,3789.7,3789.1,0.6336]
[1760161607188,0.001,3789.7,3789.3,0.6336]
[1760161607492,0.001,3789.7,3789.5,0.6336]
[1760161607819,0.001,3789.7,3789.6,1.074]
[1760161607961,0.001,3789.7,3789.6,3.71280092]
[1760161610073,0.001,3789.7,3789.6,5.63280092]
[1760161610299,0.001,3789.7,3789.6,5.76400092]
[1760161612403,0.001,3790.1,3790.0,3.27212242]
[1760161612610,0.001,3790.1,3790.0,5.32332242]
[1760161612906,0.001,3790.1,3790.0,5.75282242]
[1760161613413,2.63678417,3792.5,3790.0,5.75282242]
[1760161613414,0.2228,3793.5,3792.1,0.6336]
[1760161613722,0.2228,3793.5,3790.2,2.6383406]
[1760161613723,2.63757634,3792.8,3792.5,0.7992]
[1760161614103,0.001,3792.8,3792.5,0.7992]
[1760161614270,0.001,3792.8,3792.5,1.2287]
[1760161614977,0.001,3792.8,3792.5,3.86548312]
[1760161615502,0.001,3792.8,3792.5,3.99668312]
[1760161620590,0.001,3792.8,3792.5,0.7263]
[1760161620792,0.001,3792.8,3792.5,3.36308312]
[1760161621338,0.001,3792.8,3792.5,3.99668312]
[1760161621731,0.001,3792.8,3792.5,3.36308312]
[1760161622015,0.001,3792.8,3792.5,3.23188312]
[1760161622321,0.001,3792.8,3792.5,3.86548312]
[1760161622517,0.001,3792.8,3792.5,0.1656]
[1760161622826,0.001,3792.8,3792.5,0.5951]
[1760161623920,2.63758982,3792.8,3792.2,0.1656]
[1760161624131,2.63772739,3792.6,3792.2,0.1656]
[1760161624423,0.001,3792.6,3792.2,0.1656]
[1760161624732,0.001,3792.6,3791.4,0.1312]
[1760161624733,0.001,3792.6,3791.8,0.1656]
[1760161624888,0.001,3792.6,3792.2,0.4295]
[1760161625094,0.001,3792.6,3792.3,0.6336]
[1760161625303,0.001,3792.6,3792.3,1.0631]
[1760161625605,2.6368684,3792.4,3791.9,0.6336]
[1760161625832,0.001,3792.6,3791.9,0.6336]
[1760161626031,2.63684809,3792.5,3791.9,0.6336]
[1760161626335,0.001,3792.8,3792.7,2.63664407]
[1760161626550,0.001,3792.8,3792.5,4.55678312]
[1760161626551,0.001,3793.8,3793.0,0.6336]
[1760161626700,0.001,3793.8,3793.3,3.26982703]
[1760161626896,0.001,3793.8,3793.2,0.6336]
[1760161627250,2.63629653,3793.2,3791.5,2.63742333]
[1760161627526,0.001,3793.8,3790.6,0.1868]
[1760161627527,2.63737622,3791.7,3790.6,0.1868]
[1760161627730,0.4626,3791.6,3790.0,0.1868]
[1760161627932,2.63768095,3791.3,3790.2,2.63837908]
[1760161628131,2.63772958,3791.2,3790.0,0.1868]
[1760161628499,0.4626,3791.6,3790.4,1.92]
[1760161628702,0.4626,3791.6,3790.3,2.63830529]
[1760161628703,2.3826,3792.7,3791.0,0.6336]
[1760161628902,2.3826,3792.7,3791.1,2.63769608]
[1760161628903,2.63700232,3792.2,3791.1,2.63769608]
[1760161629135,0.4626,3792.7,3791.1,0.6336]
[1760161629342,2.6367938,3792.5,3791.3,0.6336]
[1760161629633,0.4626,3792.7,3791.3,0.6336]
[1760161629634,2.6367136,3792.6,3791.3,2.63760549]
[1760161629844,0.2228,3793.1,3791.5,0.6336]
[1760161630039,0.2228,3793.1,3791.6,3.45774183]
[1760161630200,2.63682398,3792.5,3791.6,0.8204]
[1760161630831,2.3826,3793.0,3791.6,0.8204]
[1760161631009,3.09904074,3793.0,3791.6,0.8204]
[1760161631209,2.63657456,3792.8,3790.8,0.1868]
[1760161631435,0.4626,3792.7,3791.2,2.5536]
[1760161631651,0.4626,3792.7,3791.2,3.27127492]
[1760161631652,2.63706239,3792.1,3791.2,3.27127492]
[1760161631803,2.63697771,3792.3,3791.4,0.6336]
[1760161632008,0.4626,3792.7,3791.4,3.27114307]
[1760161632009,2.63699601,3792.2,3791.4,3.27114307]
[1760161632203,0.4626,3792.9,3791.2,0.6336]
[1760161632404,2.63684406,3792.5,3791.6,0.6336]
[1760161632615,0.63646308,3793.1,3791.5,2.63741267]
[1760161632616,0.63646308,3793.1,3791.8,0.6336]
[1760161632824,2.63686796,3792.4,3791.8,0.6336]
[1760161633344,0.2228,3793.1,3791.3,2.63758399]
[1760161633345,2.63671657,3792.6,3791.9,0.1868]
[1760161633546,0.41362274,3793.1,3791.9,0.1868]
[1760161633736,0.226,3793.5,3792.0,0.6336]
[1760161633912,2.63722109,3793.4,3792.4,2.63678461]
[1760161634140,2.63722109,3793.4,3792.5,0.1868]
[1760161634141,0.001,3793.4,3792.5,0.1868]
[1760161634445,0.001,3793.4,3792.8,3.27015961]
[1760161634632,0.001,3793.4,3792.5,0.1868]
[1760161634633,0.001,3793.4,3792.9,0.6336]
[1760161635038,0.001,3793.4,3793.1,0.6336]
[1760161635410,0.001,3793.4,3792.6,0.6336]
[1760161635614,0.001,3793.4,3793.0,2.63643553]
[1760161635812,0.001,3793.4,3793.1,0.6336]
[1760161636031,0.001,3793.4,3793.3,2.63622703]
[1760161636515,0.001,3793.4,3793.3,2.82302703]
[1760161636846,0.001,3793.4,3793.3,3.45662703]
[1760161637157,0.001,3793.4,3793.3,3.58782703]
[1760161639627,0.001,3793.4,3793.3,5.50782703]
[1760161642384,1e-08,3794.2,3794.1,3.26927117]
[1760161642551,1e-08,3794.2,3794.1,5.32047117]
[1760161642747,1e-08,3794.2,3794.1,5.37607117]
[1760161642947,1e-08,3794.2,3794.1,5.50727117]
[1760161643148,2.63375421,3796.9,3794.3,0.6336]
[1760161643389,2.63375421,3796.9,3794.6,0.6336]
[1760161643589,2.63375421,3796.9,3795.7,0.1312]
[1760161643879,2.63375421,3796.9,3796.1,0.6336]
[1760161644085,0.63923228,3797.3,3796.1,0.6336]
[1760161644086,0.41323228,3797.3,3796.3,0.6336]
[1760161644284,2.63351943,3797.2,3796.3,3.26773043]
[1760161644645,2.63351943,3797.2,3796.3,0.6336]
[1760161644852,2.63358879,3797.1,3796.3,0.6336]
[1760161645047,2.63375213,3796.9,3796.3,0.6336]
[1760161645251,2.63370913,3797.0,3796.3,0.6336]
[1760161645578,0.226,3798.2,3796.3,0.6336]
[1760161645880,2.63317873,3797.7,3796.7,3.26745221]
[1760161646077,2.63330313,3797.6,3796.7,0.8204]
[1760161646376,2.63324879,3797.6,3796.7,3.45426406]
[1760161646579,2.63282607,3798.2,3797.0,2.63365201]
[1760161646797,2.6330373,3797.9,3797.1,0.8206]
[1760161647076,0.226,3798.6,3797.1,0.8206]
[1760161647077,2.63315904,3797.8,3797.1,0.8206]
[1760161647284,0.41305023,3798.1,3796.7,0.3182]
[1760161647491,0.226,3797.9,3796.4,0.6336]
[1760161647653,2.63367154,3797.0,3796.4,0.6336]
[1760161647978,2.63352166,3797.2,3796.6,0.6336]
[1760161648192,1.92,3797.8,3796.2,0.1868]
[1760161648193,2.63373008,3796.9,3796.2,0.1868]
[1760161648489,0.4626,3797.7,3796.3,0.6336]
[1760161648690,2.63402537,3796.5,3796.3,0.6336]
[1760161649204,2.63402232,3796.5,3796.3,0.6336]
[1760161649400,2.63402232,3796.5,3793.8,2.63587466]
[1760161649401,2.63391884,3796.7,3795.9,0.187]
[1760161649601,2.63407179,3796.5,3795.9,0.187]
[1760161649807,2.63407438,3796.4,3795.9,0.187]
[1760161650007,1.32584722,3799.7,3795.9,0.187]
[1760161650008,0.6336,3799.9,3796.0,0.187]
[1760161650158,0.41314375,3797.8,3796.4,0.6336]
[1760161650363,0.41314375,3797.8,3796.9,0.6336]
[1760161650560,2.63167789,3799.9,3797.1,0.6336]
[1760161650791,2.63167789,3799.9,3797.7,0.6336]
[1760161650792,2.63255636,3798.6,3797.7,0.6336]
[1760161651001,2.63255636,3798.6,3797.8,0.6336]
[1760161651164,2.63255636,3798.6,3797.8,3.26670199]
[1760161651363,2.6325631,3798.6,3797.8,3.26670199]
[1760161651606,0.4626,3799.4,3797.7,0.187]
[1760161651786,0.4626,3799.4,3797.8,0.6336]
[1760161651972,2.63242603,3798.8,3798.0,0.6336]
[1760161652175,2.63239577,3798.9,3798.2,0.6336]
[1760161652593,2.63242836,3798.8,3798.1,0.6336]
[1760161652794,0.4626,3799.4,3797.7,2.63314674]
[1760161652795,2.63200478,3799.4,3798.2,0.187]
[1760161652994,2.63272742,3798.4,3797.7,0.6336]
[1760161653196,2.63254565,3798.7,3797.7,0.6336]
[1760161653509,0.4626,3799.3,3797.9,0.6336]